Cogmind - Beta 12 @@@ ROGUE MODE // 2023.12.17 @ 06:46:22 Player: puppuppit Result: Destroyed by D-53 Grenadier with Mini Grenade Launcher Performance ------------- Evolutions (0) 0 Regions Visited (2) 400 Robots Destroyed (16) 80 Value Destroyed (553) 553 Prototype IDs (0) 0 Alien Tech Used (0) 0 Bonus (0) 0 TOTAL SCORE: 1033 Bonus ------- None Cogmind --------- Core Integrity 0/250 Matter 300/300 Energy 57/100 System Corruption 1% Temperature Cool (0) Movement Core (50) Location -10/Mines Parts ------- > --- POWER (1) -------- (None) > --- PROPULSION (2) --- (None) > --- UTILITY (2) ------ Weight Redist. System Structural Scanner > --- WEAPON (2) ------- (None) > --- INVENTORY (5) ---- Flight Unit VTOL Module Medium Matter Pod (100) Targeting Computer Targeting Computer Peak State ------------ > --- POWER ------------ Light Ion Engine > --- PROPULSION ------- VTOL Module VTOL Module > --- UTILITY ---------- Weight Redist. System Structural Scanner > --- WEAPON ----------- Assault Rifle Bore Cannon > --- INVENTORY -------- Light Ion Engine VTOL Module Medium Matter Pod Light Cannon Grenade Launcher [Rating: 14] Favorites ----------- Power Light Ion Engine Engine Light Ion Engine Power Core Light Nuclear Core Propulsion VTOL Module Wheel Compact Wheel Hover Unit Backup Propulsion I Flight Unit VTOL Module Utility Weight Redist. System Device Weight Redist. System Protection Backup Plating I Weapon Assault Rifle Energy Gun Backup Laser I Ballistic Gun Assault Rifle Ballistic Cannon Light Cannon Launcher Grenade Launcher Build | -11 -10 -10 ------- Run | Jun Mat Min Slots Evolved . | . . . Power . | . . . Propulsion . | . . . Utility . | . . . Weapon . | . . . Parts Attached 29 | 5 12 12 Power 7 | 1 4 2 Engine 5 | 1 2 2 Core 2 | . 2 . Reactor . | . . . Propulsion 11 | 2 2 7 Treads . | . . . Leg . | . . . Wheel 4 | 2 . 2 Hover . | . . . Flight 7 | . 2 5 Utility 4 | . 4 . Device 4 | . 4 . Storage . | . . . Processor . | . . . Hackware . | . . . Protection . | . . . Artifact . | . . . Weapon 7 | 2 2 3 Energy Gun 1 | 1 . . Energy Cannon . | . . . Ballistic Gun 2 | 1 1 . Ballistic Cannon 2 | . 1 1 Launcher 2 | . . 2 Special Weapon . | . . . Impact Weapon . | . . . Slashing Weapon . | . . . Piercing Weapon . | . . . Special Melee Weapon . | . . . Unidentified Prototypes . | . . . Parts Lost 8 | . 2 6 Power 3 | . 1 2 Propulsion 4 | . 1 3 Utility . | . . . Weapon 1 | . . 1 Highest Loss Streak 3 | . 2 3 To Critical Strikes . | . . . Average Slot Usage (%) 86 | . 90 80 Engine 8 | . 6 12 Core 4 | . 7 . Wheel 7 | . 3 12 Hover 3 | . 6 . Flight 14 | . 15 11 Device 21 | . 16 28 Protection 3 | . 6 . Ballistic Gun 7 | . 13 . Ballistic Cannon 12 | . 11 13 Naked Turns . | . . . Heaviest Build 13 | 5 12 13 Greatest Support 32 | 32 32 32 Greatest Overweight (x) 1 | . . 1 Average Overweight (x) . | . . . Largest Inventory Capacity 5 | 5 5 5 Average Capacity 5 | 5 5 5 Most Carried 5 | . 5 5 Average Carried 4 | . 3 4 Final Capacity 5 | 5 5 5 Final Carried 5 | . 5 5 Class Distribution -------------------- 50% | Sprinter 49% | Mutant Dominant Class ---------------- Sprinter | -10/Materials Sprinter | -10/Mines Resources | -11 -10 -10 ----------- Run | Jun Mat Min Matter Collected 1243 | 198 362 683 Remotely . | . . . Salvage Created 446 | . 404 42 Parts 20 | . 19 1 Haulers Intercepted . | . . . Recyclers Shooed . | . . . Parts Field Recycled . | . . . Retrieved Matter . | . . . Parts Self-Destructed . | . . . Prevented . | . . . Kills | -11 -10 -10 ------- Run | Jun Mat Min Combat Hostiles Destroyed 13 | . 10 3 Guns 1 | . 1 . Cannons 11 | . 9 2 AOE 1 | . . 1 Classes Destroyed 5 | . 3 2 Operator 2 | . 2 . Watcher 2 | . 2 . Grunt 10 | . 10 . Sentry 2 | . . 2 Assembled 1 | . . 1 Best Kill Streak 4 | . 4 2 Combat Bots Only 2 | . 2 2 Max Kills in Single Turn 1 | . 1 1 Gunslinging . | . . . Exploded 1 | . . 1 Melee . | . . . Uniques/NPCs Destroyed . | . . . Combat | -11 -10 -10 -------- Run | Jun Mat Min Damage Taken 994 | . 432 562 Core 250 | . 74 176 Absorbed by Shields . | . . . Core Remaining (%) 100 | 100 . . Volleys Fired 74 | . 55 19 Largest 2 | . 2 2 Hottest 87 | . 55 87 Shots Fired 134 | . 110 24 Gun 56 | . 56 . Cannon 73 | . 54 19 Launcher 5 | . . 5 Special . | . . . Kinetic 128 | . 109 19 Thermal 1 | . 1 . Explosive 5 | . . 5 Electromagnetic . | . . . Robot Hit Streak 8 | . 8 6 Robot Miss Streak 8 | . 8 3 Penetration Max . | . . . Secondary Targets . | . . . Shots Hit Robots 64 | . 54 10 Core Hits 30 | . 22 8 Critical Kills 2 | . . 2 Critical Parts Destroyed 3 | . . 3 Critical Strikes 8 | . 2 6 Destroy 6 | . . 6 Blast 2 | . 2 . Melee Attacks . | . . . Impact . | . . . Slashing . | . . . Piercing . | . . . Sneak Attacks . | . . . Combat Hostiles . | . . . Follow-up Attacks . | . . . Damage Inflicted 1176 | . 915 261 Guns 334 | . 334 . Cannons 745 | . 581 164 Explosions 97 | . . 97 Melee . | . . . Ramming . | . . . Kinetic 1071 | . 907 164 Thermal 8 | . 8 . Explosive 97 | . . 97 Electromagnetic . | . . . Impact . | . . . Slashing . | . . . Piercing . | . . . Highest Corruption 1 | . 1 1 Average Corruption 1 | . 1 1 Corruption Purged . | . . . Corruption Blocked . | . . . Effects 4 | . . 4 Matter Fused 2 | . . 2 Heat Flow Errors 1 | . . 1 Data Loss (major) 1 | . . 1 Overload Shots . | . . . Overflow Damage 28 | . 20 8 Projectiles 20 | . 20 . Explosions 8 | . . 8 Melee . | . . . Knockbacks 7 | . 6 1 Impact . | . . . Kinetic 7 | . 6 1 Secondary . | . . . Self-Inflicted Damage 30 | . . 30 Shots 1 | . . 1 Rammed . | . . . Targets Rammed . | . . . Kicked . | . . . Crushed . | . . . Highest Temperature 230 | . 111 230 Average Temperature 47 | . 37 71 Received Heat Transfer 376 | . 228 148 Siege Activations . | . . . Robots Corrupted . | . . . Combat Hostiles . | . . . Parts Fried . | . . . Impact Corruptions . | . . . Robots Melted . | . . . Combat Hostiles . | . . . Parts Melted . | . . . Heat Transferred 37 | . 37 . Parts Sabotaged . | . . . Parts Stolen . | . . . Parts Stripped . | . . . Power Chain Reactions . | . . . Missiles Intercepted . | . . . Alert | -11 -10 -10 ------- Run | Jun Mat Min Peak Influence 326 | . 326 167 Initial 94 | . . 94 Average 126 | . 126 138 Maximum Alert Level 1 | . 1 . Low Security (%) 86 | 100 76 100 Level 1 13 | . 23 . Level 2 . | . . . Level 3 . | . . . Level 4 . | . . . Level 5 . | . . . High Security . | . . . Max Security . | . . . Squads Dispatched 2 | . 2 . Investigation . | . . . Extermination . | . . . Reinforcement 2 | . 2 . Assault . | . . . Garrison . | . . . Intercept . | . . . Searches Triggered . | . . . Construction Impeded . | . . . Haulers Reinforced . | . . . Active Scanning Responses . | . . . Cargo Convoy Interrupts . | . . . Stealth | -11 -10 -10 --------- Run | Jun Mat Min Distress Signals 3 | . 2 1 Communications Jammed . | . . . Distress Signals . | . . . Times Spotted 26 | . 18 8 Peak Tracking Total 12 | . 3 12 Tactical Retreats 6 | . 2 4 Traps | -11 -10 -10 ------- Run | Jun Mat Min Traps Triggered 1 | . 1 . Indirectly . | . . . Trap Hack Attempts . | . . . Triggered . | . . . Disarmed . | . . . Reprogrammed . | . . . Reused . | . . . Traps Extracted . | . . . Installed . | . . . Triggered . | . . . Machines | -11 -10 -10 ---------- Run | Jun Mat Min Machines Disabled 2 | . 2 . Max in Single Turn 1 | . 1 . Machines Repaired . | . . . Machines Sabotaged . | . . . Overloaded Fab Kills . | . . . Hacking | -11 -10 -10 --------- Run | Jun Mat Min Machines Accessed 8 | . 8 . Terminals 6 | . 6 . Fabricators . | . . . Repair Stations 1 | . 1 . Recycling Units 1 | . 1 . Scanalyzers . | . . . Garrison Access . | . . . Total Hacks 16 | . 16 . Successful 7 | . 7 . Failed 9 | . 9 . Catastrophic 1 | . 1 . Database Lockouts . | . . . Manual . | . . . Terminals 12 | . 12 . Fabricators . | . . . Repair Stations 3 | . 3 . Recycling Units 1 | . 1 . Scanalyzers . | . . . Garrison Access . | . . . Terminal Hacks 5 | . 5 . Record 2 | . 2 . Locate Traps 1 | . 1 . Dispatch Records 1 | . 1 . Zone Layout 1 | . 1 . Fabricator Hacks . | . . . Repair Station Hacks 1 | . 1 . Refit 1 | . 1 . Recycling Unit Hacks 1 | . 1 . Retrieve Components 1 | . 1 . Scanalyzer . | . . . Garrison Access Hacks . | . . . Unauthorized Hacks . | . . . Terminals . | . . . Fabricators . | . . . Repair Stations . | . . . Recycling Units . | . . . Scanalyzers . | . . . Garrison Access . | . . . Data Cores Recovered . | . . . Used . | . . . Hacking Detections 5 | . 5 . Full Trace Events . | . . . Feedback Events . | . . . Feedback Blocked . | . . . Robot Schematics Acquired . | . . . Robots Built . | . . . Authchips . | . . . Time . | . . . Total Robot Build Rating . | . . . Part Schematics Acquired . | . . . Parts Built . | . . . Authchips . | . . . Time . | . . . Total Part Build Rating . | . . . Parts Repaired . | . . . Time . | . . . Parts Recycled . | . . . Recycled Matter . | . . . Retrieved Matter . | . . . Retrieved Components . | . . . Parts Scanalyzed . | . . . Part Schematics Acquired . | . . . Parts Damaged . | . . . Bothacking | -11 -10 -10 ------------ Run | Jun Mat Min Used RIF Installer . | . . . Robots Hacked . | . . . Non-combat . | . . . Combat . | . . . Robot Hacks Applied . | . . . Relay Couplers Released . | . . . Fabnet Peak Effective % . | . . . Robots Rewired . | . . . Allies Hacked . | . . . Hacks Repelled . | . . . Allies | -11 -10 -10 -------- Run | Jun Mat Min Total Allies . | . . . Largest Group . | . . . Highest-Rated Group . | . . . Highest-Rated Ally . | . . . Total Orders . | . . . Ally Attacks . | . . . Total Damage . | . . . Kills . | . . . Allies Corrupted . | . . . Allies Melted . | . . . Intel | -11 -10 -10 ------- Run | Jun Mat Min Robot Analysis Total . | . . . Derelict Logs Recovered 1 | . . 1 Drone Launches . | . . . Drone Recoveries . | . . . Exploration | -11 -10 -10 ------------- Run | Jun Mat Min Turns Passed 958 | 37 524 397 Spaces Moved 1111 | 31 627 453 Core 33 | 3 . 30 Treads . | . . . Legs . | . . . Wheels 271 | 28 61 182 Hover 104 | . 104 . Flight 703 | . 462 241 Fastest Speed 32 | 50 32 32 Average Speed 51 | 95 46 57 Slowest Speed 100 | 100 100 100 Overloaded Moves . | . . . Propulsion Burnouts . | . . . Robots Hopped 6 | . 5 1 Cave-ins Triggered . | . . . Exploration Rate (%) 57 | 4 91 76 Regions Visited 2 Branch Regions 1 Pre-discovered Areas 1 | . . 1 Known Exits Taken . | . . . Unknown Exits Taken 2 | 1 1 . Scrap Searched 2 | . . 2 Spaces Dug . | . . . Terrain Destroyed 43 | . . 43 Melee . | . . . Projectile 15 | . . 15 AOE 28 | . . 28 Terrain Rammed . | . . . Walls Destroyed . | . . . Machines Disabled . | . . . Actions | -11 -10 -10 --------- Run | Jun Mat Min Total 1354 | 36 747 571 Wait 110 | . 40 70 Move 1097 | 30 616 451 Hop 6 | . 5 1 Pick Up 9 | . 4 5 Fast Attach 17 | 5 9 3 Attach 8 | . 1 7 Detach 9 | . 4 5 Swap 4 | . 2 2 Drop 20 | 1 11 8 Fire 74 | . 55 19 Melee . | . . . Ram . | . . . Kick . | . . . Crush . | . . . Escape Stasis . | . . . Rewire . | . . . Trap . | . . . Miscellaneous . | . . . Route ------- -11/Junkyard -10/Materials (discovered 5 exits: [*Mat x3] / [*Min x2]) -10/Mines (discovered 2 exits: [*Mat x2]) History --------- Turn | Location | Event 19 | -11/Junkyard | Discovered new exit (range 15) 38 | -11/Junkyard | Entered Materials 130 | -10/Materials | Discovered new exit (range 10) 223 | -10/Materials | Discovered new exit (range 8) 353 | -10/Materials | Discovered new exit (range 16) 408 | -10/Materials | Discovered new exit (range 6) 502 | -10/Materials | Discovered new exit (range 16) 562 | -10/Materials | Entered Mines 569 | -10/Mines | A weapon hastily lodged in a ceiling crevice suddenly fell to the ground 580 | -10/Mines | Assembled infested the area 587 | -10/Mines | Learned Materials interactive machine intel 639 | -10/Mines | Discovered new exit (range 6) 687 | -10/Mines | Core integrity fell below 50% 765 | -10/Mines | Discovered new exit (range 14) 779 | -10/Mines | Learned location of Storage (-7) 959 | -10/Mines | Core integrity fell below 20% 959 | -10/Mines | Destroyed by D-53 Grenadier with Mini Grenade Launcher Last Messages --------------- here trying to lose some heat after our second raid on Storage failed. Whatever you do stay away from that place, they've tightened security following our previous successful raids." World map updated: -7/Storage. 00781_ 1Y-VKW(g): "We scattered so the Unaware couldn't effectively use their advantage in numbers, and I suggest you do the same." 00781_ 1Y-VKW(g) slips back into the shadows. 00783_ Acquired 19 matter. 00786_ Dropped Lgt. Ion Engine. 00791_ Acquired 18 matter. 00878_ K-01 Serf collects debris. 00933_ HV Slug penetrates Wall. 00940_ System corrupted: Heat flow error (+255). 00940_ Bore Cannon destroyed. 00940_ Lgt. Ion Engine destroyed. 00945_ Wheel destroyed. 00945_ Dropped Com. Wheel. 00947_ The unstable cave ceiling collapses. 00949_ Dropped Targeting Computer. 00949_ Acquired Flight Unit. Map ----- +----------------------------------------------------+ | ??## ##??????????## ##### ### | | ??## ##??????????### ###### ### | | ??## ##??????????########?## ##? | | #### ####?????????#####???## ### | | #### ####????????????????### ### | | ## ##???????????????#### ## | | ## ##???????????????### # | | ##""" ##???????????????## | | ##""" ##???????????????## ## | | ##""" ##???????????????### ### | | ## ##??????????????#### ### | | ## ##???????????####### ##? | | ## ##??????????###### ### | | ##########?????????#### # ### | | ##########????????#### | | ??????????????????### ### | | ??#######????????### ### | | ??#######????????### ### | | ??## ###???????## | | ??### ###????###### ## | | ??### ##????##### ### | | ??### ###???## ### # | | ??## ######?## ## # | | ?### ####### = ### # | | ?### ##### ###### | | ?## @ #### # # ###### | | ?## dd! ### ######???? | | ?## [% ###### ######???? | | ?### ####### ##???????? | | ?###### ## ?? ##???????? | | ??######## ### ??? ##???????? | | ?????###########????######???????? | | ????????#######?????######???????? | | ?????????????????????????????????? | | ?????????????????????????????????? | | ?????????????????????????????????? | | ?????????????????????????????????? | | ?????????????????????????????????? | | ?????????????????????????????????? | | ?????????????????????????????????? | | ?????????????????????????????????? | | ?????????????????????????????????? | | ?????????????????????????????????? | | ?????????????????????????????????? | | ?????????????????????????????????? | | ?????????????????????????????????? | | | | | | | | | +----------------------------------------------------+ Best States ------------- Heat Dissipation 25 Energy Generation 14 Energy Capacity 160 Matter Stores 300 Matter Capacity 300 Sight Range 16 Terrain Scan Range 14 Terrain Scan Density 10 Additional Mass Support 6 Armor Coverage 160 Evasion (%) 63 Item Schematics ----------------- None Robot Schematics ------------------ None Fabricated ------------ Nothing Alien Tech Used ----------------- None Achievements -------------- None Challenges ------------ None Game ------ Seed CoreStealthCorpse Manual? 0 Play Time 00:20:05 Cumulative 34.4 hours Start 2023.12.17 @ 06:28:48 End 2023.12.17 @ 06:46:22 Sessions 1 Manual Loads 0 Difficulty Rogue Special Mode None Game No. 23 Rogue 23 Adventurer 0 Explorer 0 Win Type - Total 0 Types 0/0/0/0/0/0/0/0/0 Lore% 24 Gallery% 32 Achievement% 31 Wizard Run 0 Options --------- ASCII 0 Keyboard 1 Movement Arrows Keybinds 0 Fullscreen 1 Font 12/Proggy Map View 83x54 Tactical HUD 1 Map Filters NONE Filters NONE Steam 0 RUN: 99df3417-6912-438b-9f1a-e22ab370791b